fUST/lending_fUST_20240808
["ID","MTS","AMOUNT","RATE_DAILY","PERIOD"]
[334430159,1723089050907,-571.11959783,0.00027671,7]
[334430160,1723089050916,-1833.31,0.00027671,7]
[334430161,1723089050927,-1906.27,0.00027671,7]
[334430162,1723089050936,-500.0,0.00027671,7]
[334430163,1723089050946,-2187.08,0.00027671,7]
[334430164,1723089050959,-500.0,0.00027671,7]
[334430165,1723089050969,-500.0,0.00027671,7]
[334430166,1723089051036,-151.0,0.00027671,7]
[334430167,1723089051047,-151.0,0.00027671,7]
[334430168,1723089051057,-500.0,0.00027671,7]
[334430169,1723089051067,-151.0,0.00027671,7]
[334430170,1723089051077,-151.0,0.00027671,7]
[334430171,1723089051088,-2544.2,0.00027671,7]
[334430172,1723089051100,-151.0,0.00027671,7]
[334430173,1723089051110,-209.195549,0.00027671,7]
[334430174,1723089051121,-500.0,0.00027671,7]
[334430175,1723089051131,-151.0,0.00027671,7]
[334430176,1723089051142,-151.0,0.00027671,7]
[334430177,1723089051152,-524.94,0.00027671,7]
[334430178,1723089051163,-740.67,0.00027671,7]
[334430179,1723089051172,-500.0,0.00027671,7]
[334430180,1723089051183,-500.0,0.00027671,7]
[334430181,1723089051194,-2800.51,0.00027671,7]
[334430182,1723089051205,-2780.86,0.00027671,7]
[334430183,1723089051215,-500.0,0.00027671,7]
[334430184,1723089051226,-500.0,0.00027671,7]
[334430185,1723089051237,-500.0,0.00027671,7]
[334430186,1723089051249,-500.0,0.00027671,7]
[334430187,1723089051259,-500.0,0.00027671,7]
[334430188,1723089051269,-500.0,0.00027671,7]
[334430189,1723089051279,-503.3243461,0.00027671,7]
[334430190,1723089051289,-665.99946626,0.00027671,7]
[334430191,1723089168467,169.236706,0.00014247,2]
[334430198,1723089259186,273.82268811,0.00014247,2]
[334430202,1723089646659,166.64826,0.00014247,2]
[334430211,1723090140501,169.236706,0.00014247,2]
[334430234,1723090231928,-280.0,0.0002335,2]
[334430270,1723090238284,-8.88628725,0.0002335,2]
[334430271,1723090238293,-385.17091307,0.00024007,2]
[334430285,1723090241844,-54.70111402,0.00024007,2]
[334430286,1723090241854,-540.5384966,0.00025509,2]
[334430287,1723090241864,-200.0,0.00026027,2]
[334430288,1723090241874,-335.85855798,0.00026575,2]
[334430289,1723090241884,-150.0,0.00026652,2]
[334430290,1723090241893,-1420.135,0.00026652,2]
[334430291,1723090241903,-153.0,0.00026658,2]
[334430292,1723090241912,-153.0,0.00026658,2]
[334430293,1723090241921,-153.0,0.00026658,2]
[334430294,1723090241930,-300.0,0.00027295,2]
[334430295,1723090241940,-3563.82141619,0.00027387,3]
[334430296,1723090241949,-500.0,0.00027396,2]
[334430297,1723090241958,-307.7617179,0.00027396,2]
[334430298,1723090241970,-548.63,0.00027397,7]
[334430299,1723090241980,-500.0,0.00027397,7]
[334430300,1723090241989,-500.0,0.00027397,7]
[334430301,1723090241999,-516.08,0.00027397,7]
[334430302,1723090242008,-500.0,0.00027397,7]
[334430303,1723090242020,-500.0,0.00027397,7]
[334430304,1723090242030,-518.61,0.00027397,7]
[334430305,1723090242039,-500.0,0.00027397,7]
[334430306,1723090242049,-500.0,0.00027397,7]
[334430307,1723090242058,-500.0,0.00027397,7]
[334430308,1723090242069,-500.0,0.00027397,7]
[334430309,1723090242078,-500.0,0.00027397,7]
[334430310,1723090242088,-500.0,0.00027397,7]
[334430311,1723090242100,-500.0,0.00027397,7]
[334430312,1723090242109,-504.32923499,0.00027397,7]
[334430313,1723090242118,-503.24343331,0.00027397,7]
[334430314,1723090242128,-500.0,0.00027397,7]
[334430315,1723090242137,-500.0,0.00027397,7]
[334430316,1723090242146,-504.69757026,0.00027397,7]
[334430317,1723090242156,-500.0,0.00027397,7]
[334430318,1723090242165,-503.31204216,0.00027397,7]
[334430319,1723090242174,-500.0,0.00027397,7]
[334430320,1723090242184,-500.76014814,0.00027397,7]
[334430321,1723090242193,-500.0,0.00027397,7]
[334430322,1723090242208,-505.09385312,0.00027397,7]
[334430323,1723090242221,-217.55463033,0.00027397,7]
[334430324,1723090242230,-500.0,0.00027397,7]
[334430325,1723090242239,-501.7668624,0.00027397,7]
[334430326,1723090242248,-500.0,0.00027397,7]
[334430327,1723090242258,-500.0,0.00027397,7]
[334430328,1723090242267,-500.0,0.00027397,7]
[334430329,1723090242277,-500.0,0.00027397,7]
[334430330,1723090242286,-500.0,0.00027397,7]
[334430331,1723090242295,-501.18642415,0.00027397,7]
[334430332,1723090242304,-367.64667449,0.00027397,7]
[334430333,1723090242313,-500.0,0.00027397,7]
[334430334,1723090242322,-500.0,0.00027397,7]
[334430335,1723090242331,-980.15,0.00027397,7]
[334430336,1723090242340,-503.48049863,0.00027397,7]
[334430337,1723090242349,-500.0,0.00027397,7]
[334430338,1723090242358,-500.0,0.00027397,7]
[334430340,1723090242367,-526.53,0.00027397,7]
[334430342,1723090242376,-500.0,0.00027397,7]
[334430344,1723090242386,-500.0,0.00027397,7]
[334430346,1723090242395,-504.82248317,0.00027397,7]
[334430349,1723090242405,-501.49119047,0.00027397,7]
[334430351,1723090242415,-500.0,0.00027397,7]
[334430354,1723090242424,-526.78759238,0.00027397,7]
[334430357,1723090242433,-500.0,0.00027397,7]
[334430360,1723090242442,-502.16653825,0.00027397,7]
[334430362,1723090242451,-164.03824881,0.00027397,7]
[334430364,1723090242460,-500.0,0.00027397,7]
[334430367,1723090242472,-500.0,0.00027397,7]
[334430369,1723090242481,-500.0,0.00027397,7]
[334430371,1723090242490,-500.0,0.00027397,7]
[334430372,1723090242499,-500.0,0.00027397,7]
[334430373,1723090242508,-502.23178626,0.00027397,7]
[334430374,1723090242518,-501.49324101,0.00027397,7]
[334430375,1723090242527,-503.02876205,0.00027397,7]
[334430376,1723090242537,-500.0,0.00027397,7]
[334430377,1723090242546,-500.0,0.00027397,7]
[334430378,1723090242555,-632.50901331,0.00027397,7]
[334430379,1723090242564,-500.0,0.00027397,7]
[334430380,1723090242573,-502.61623539,0.00027397,7]
[334430381,1723090242583,-500.0,0.00027397,7]
[334430382,1723090242592,-500.0,0.00027397,7]
[334430383,1723090242602,-500.82578428,0.00027397,7]
[334430384,1723090242612,-500.0,0.00027397,7]
[334430385,1723090242621,-766.02,0.00027397,7]
[334430386,1723090242631,-500.0,0.00027397,7]
[334430387,1723090242640,-459.18101564,0.00027397,7]
[334430388,1723090242650,-500.0,0.00027397,7]
[334430389,1723090242659,-500.0,0.00027397,7]
[334430390,1723090242669,-500.0,0.00027397,7]
[334430391,1723090242679,-500.0,0.00027397,7]
[334430392,1723090242689,-504.29775937,0.00027397,7]
[334430393,1723090242698,-500.0,0.00027397,7]
[334430394,1723090242708,-500.0,0.00027397,7]
[334430395,1723090242719,-500.0,0.00027397,7]
[334430396,1723090242728,-501.88127732,0.00027397,7]
[334430397,1723090242738,-500.0,0.00027397,7]
[334430399,1723090242748,-502.33797079,0.00027397,7]
[334430401,1723090242758,-500.0,0.00027397,7]
[334430403,1723090242768,-501.32944552,0.00027397,7]
[334430405,1723090242777,-500.0,0.00027397,7]
[334430407,1723090242787,-500.0,0.00027397,7]
[334430409,1723090242796,-947.13,0.00027397,7]
[334430411,1723090242806,-503.30511167,0.00027397,7]
[334430413,1723090242816,-500.0,0.00027397,7]
[334430415,1723090242826,-500.0,0.00027397,7]
[334430417,1723090242836,-605.09,0.00027397,7]
[334430419,1723090242845,-574.44,0.00027397,7]
[334430421,1723090242855,-500.0,0.00027397,7]
[334430423,1723090242865,-500.0,0.00027397,7]
[334430425,1723090242874,-597.35,0.00027397,7]
[334430427,1723090242883,-1011.37,0.00027397,7]
[334430429,1723090242892,-201.53114008,0.00027397,7]
[334430431,1723090242902,-502.2114673,0.00027397,7]
[334430432,1723090242911,-500.0,0.00027397,7]
[334430435,1723090242921,-1081.97,0.00027397,7]
[334430436,1723090242931,-500.0,0.00027397,7]
[334430438,1723090242940,-500.0,0.00027397,7]
[334430441,1723090242950,-500.0,0.00027397,7]
[334430443,1723090242960,-500.0,0.00027397,7]
[334430445,1723090242971,-500.0,0.00027397,7]
[334430447,1723090242982,-502.31641083,0.00027397,7]
[334430449,1723090242993,-500.0,0.00027397,7]
[334430451,1723090243003,-387.99577224,0.00027397,7]
[334430474,1723090243412,-112.00422776,0.00027397,7]
[334430475,1723090243422,-500.0,0.00027397,7]
[334430476,1723090243432,-256.01626191,0.00027397,7]
[334430477,1723090245298,505.39577212,0.00017269,2]
[334430517,1723090246021,-243.98373809,0.00027397,7]
[334430519,1723090246031,-1166.19,0.00027397,7]
[334430521,1723090246041,-159.68717361,0.00027397,7]
[334430550,1723090785678,168.502197,0.00014247,2]
[334430551,1723090809070,563.94119042,0.00027,120]
[334430567,1723091044477,155.0,0.00015,2]
[334430568,1723091049003,155.0,0.00015,2]
[334430569,1723091053580,155.0,0.00015,2]
[334430571,1723091058400,155.0,0.00015,2]
[334430572,1723091063369,155.0,0.00015,2]
[334430573,1723091068235,155.0,0.00015,2]
[334430574,1723091073076,155.23356868,0.00015,2]
[334430613,1723091438571,-1593.34969734,0.00021599,3]
[334430614,1723091438582,-684.85482366,0.00021599,3]
[334430615,1723091438592,-154.68289905,0.000223,2]
[334430616,1723091438601,-417.58520774,0.0002315,2]
[334430617,1723091438611,-665.85175117,0.00025,2]
[334430618,1723091438620,-900.0,0.00025469,3]
[334430619,1723091438629,-183.759084,0.00025664,2]
[334430620,1723091438639,-13303.8267956,0.00025722,2]
[334430621,1723091438648,-4983.4290066,0.00025725,2]
[334430622,1723091438657,-200.0,0.00026027,2]
[334430623,1723091438666,-183.759084,0.0002611,2]
[334430624,1723091438675,-183.759084,0.00026555,2]
[334430625,1723091438684,-454.3180478,0.00026685,2]
[334430626,1723091438694,-155.7412047,0.00026767,2]
[334430627,1723091438703,-418.2213161,0.00026795,2]
[334430628,1723091438712,-276.9320131,0.00026795,2]
[334430629,1723091438722,-271.5025496,0.00026795,2]
[334430630,1723091438732,-271.5025496,0.00026795,2]
[334430631,1723091438744,-183.759084,0.00027001,2]
[334430632,1723091438753,-151.0,0.00027059,4]
[334430633,1723091438762,-151.0,0.00027059,4]
[334430634,1723091438771,-151.41089074,0.00027287,2]
[334430635,1723091438781,-151.4108907,0.0002729,2]
[334430636,1723091438790,-151.4108907,0.00027292,2]
[334430637,1723091438800,-151.4108907,0.00027295,2]
[334430638,1723091438809,-2000.0,0.00027297,2]
[334430639,1723091438818,-151.4108907,0.00027297,2]
[334430640,1723091438827,-515.67,0.00027315,2]
[334430641,1723091438836,-49367.3259804,0.00027387,3]
[334430642,1723091438846,-17869.22,0.00027387,3]
[334430643,1723091438855,-565.43320253,0.00027396,2]
[334430644,1723091438864,-625.1,0.00027397,7]
[334430645,1723091438873,-500.0,0.00027397,7]
[334430646,1723091438882,-500.0,0.00027397,7]
[334430647,1723091438892,-500.0,0.00027397,7]
[334430648,1723091438901,-571.11959783,0.00027397,7]
[334430649,1723091438910,-606.19,0.00027397,7]
[334430650,1723091438919,-504.5145759,0.00027397,7]
[334430651,1723091438928,-500.0,0.00027397,7]
[334430652,1723091438938,-500.0,0.00027397,7]
[334430653,1723091438947,-500.0,0.00027397,7]
[334430654,1723091438957,-502.39251373,0.00027397,7]
[334430655,1723091438966,-550.51,0.00027397,7]
[334430656,1723091438976,-350.66371931,0.00027397,7]
[334430657,1723091438985,-500.0,0.00027397,7]
[334430658,1723091438996,-500.0,0.00027397,7]
[334430659,1723091439005,-500.0,0.00027397,7]
[334430660,1723091439015,-504.08853534,0.00027397,7]
[334430661,1723091439024,-504.27297179,0.00027397,7]
[334430662,1723091439033,-500.0,0.00027397,7]
[334430663,1723091439043,-500.0,0.00027397,7]
[334430664,1723091439052,-500.0,0.00027397,7]
[334430665,1723091439061,-500.0,0.00027397,7]
[334430666,1723091439070,-475.08023048,0.00027397,7]
[334430667,1723091439079,-500.0,0.00027397,7]
[334430668,1723091439088,-635.76,0.00027397,7]
[334430669,1723091439097,-500.0,0.00027397,7]
[334430670,1723091439106,-500.0,0.00027397,7]
[334430671,1723091439115,-500.0,0.00027397,7]
[334430672,1723091439125,-500.0,0.00027397,7]
[334430673,1723091439134,-1833.31,0.00027397,7]
[334430674,1723091439144,-200.56675743,0.00027397,7]
[334430675,1723091439154,-500.0,0.00027397,7]
[334430676,1723091439163,-1081.26,0.00027397,7]
[334430677,1723091439172,-502.03406353,0.00027397,7]
[334430678,1723091439181,-500.0,0.00027397,7]
[334430679,1723091439190,-500.0,0.00027397,7]
[334430680,1723091439200,-503.62180148,0.00027397,7]
[334430681,1723091439209,-503.32153423,0.00027397,7]
[334430682,1723091439218,-500.0,0.00027397,7]
[334430683,1723091439227,-250.245087,0.00027397,7]
[334430684,1723091439239,-500.0,0.00027397,7]
[334430685,1723091439248,-501.55399344,0.00027397,7]
[334430686,1723091439257,-566.24,0.00027397,7]
[334430687,1723091439267,-501.37555206,0.00027397,7]
[334430688,1723091439276,-500.0,0.00027397,7]
[334430689,1723091439285,-500.0,0.00027397,7]
[334430690,1723091439294,-500.0,0.00027397,7]
[334430691,1723091439303,-501.05860132,0.00027397,7]
[334430692,1723091439312,-504.06897648,0.00027397,7]
[334430693,1723091439321,-500.0,0.00027397,7]
[334430694,1723091439331,-500.0,0.00027397,7]
[334430695,1723091439341,-501.00813868,0.00027397,7]
[334430696,1723091439350,-500.0,0.00027397,7]
[334430697,1723091439359,-500.0,0.00027397,7]
[334430698,1723091439369,-500.0,0.00027397,7]
[334430699,1723091439378,-200.0,0.00027397,7]
[334430700,1723091439388,-501.67769796,0.00027397,7]
[334430701,1723091439402,-500.0,0.00027397,7]
[334430702,1723091439411,-500.0,0.00027397,7]
[334430703,1723091439421,-500.0,0.00027397,7]
[334430704,1723091439431,-500.0,0.00027397,7]
[334430705,1723091439441,-500.0,0.00027397,7]
[334430706,1723091439451,-547.25,0.00027397,7]
[334430707,1723091439460,-504.0236675,0.00027397,7]
[334430708,1723091439471,-500.0,0.00027397,7]
[334430709,1723091439482,-500.0,0.00027397,7]
[334430710,1723091439493,-646.08585244,0.00027397,7]
[334430711,1723091439504,-500.0,0.00027397,7]
[334430712,1723091439513,-500.0,0.00027397,7]
[334430713,1723091439522,-554.24,0.00027397,7]
[334430714,1723091439532,-1018.67,0.00027397,7]
[334430715,1723091439541,-500.0,0.00027397,7]
[334430716,1723091439551,-450.0,0.00027397,7]
[334430717,1723091439561,-502.49036166,0.00027397,7]
[334430718,1723091439571,-625.75641295,0.00027397,7]
[334430719,1723091439580,-505.18493295,0.00027397,7]
[334430720,1723091439589,-502.71337189,0.00027397,7]
[334430722,1723091439598,-500.0,0.00027397,7]
[334430723,1723091439607,-500.0,0.00027397,7]
[334430724,1723091439615,-585.3345814,0.00027397,7]
[334430725,1723091439624,-500.0,0.00027397,7]
[334430726,1723091439633,-500.0,0.00027397,7]
[334430728,1723091439642,-517.03596231,0.00027397,7]
[334430729,1723091439651,-730.06,0.00027397,7]
[334430731,1723091439660,-500.0,0.00027397,7]
[334430734,1723091439669,-501.85,0.00027397,7]
[334430736,1723091439678,-617.07844097,0.00027397,7]
[334430738,1723091439687,-153.399951,0.00027397,7]
[334430740,1723091439697,-500.0,0.00027397,7]
[334430742,1723091439706,-500.0,0.00027397,7]
[334430743,1723091439715,-178.890115,0.00027397,7]
[334430744,1723091439724,-178.890115,0.00027397,7]
[334430745,1723091439733,-178.890115,0.00027397,7]
[334430746,1723091439744,-501.23987814,0.00027397,7]
[334430747,1723091439753,-178.890115,0.00027397,7]
[334430748,1723091439763,-503.34305989,0.00027397,7]
[334430749,1723091439772,-500.0,0.00027397,7]
[334430750,1723091439782,-500.0,0.00027397,7]
[334430751,1723091439791,-500.0,0.00027397,7]
[334430752,1723091439801,-500.0,0.00027397,7]
[334430753,1723091439810,-500.0,0.00027397,7]
[334430754,1723091439819,-500.0,0.00027397,7]
[334430755,1723091439829,-355.88630145,0.00027397,7]
[334430756,1723091439838,-500.0,0.00027397,7]
[334430757,1723091439847,-178.890115,0.00027397,7]
[334430758,1723091439857,-500.0,0.00027397,7]
[334430759,1723091439866,-178.890115,0.00027397,7]
[334430760,1723091439875,-500.0,0.00027397,7]
[334430761,1723091439885,-500.0,0.00027397,7]
[334430763,1723091439895,-500.0,0.00027397,7]
[334430764,1723091439904,-500.0,0.00027397,7]
[334430765,1723091439913,-500.0,0.00027397,7]
[334430766,1723091439923,-755.26,0.00027397,7]
[334430767,1723091439933,-501.77742682,0.00027397,7]
[334430768,1723091439942,-503.52231645,0.00027397,7]
[334430769,1723091439952,-500.0,0.00027397,7]
[334430770,1723091439961,-500.0,0.00027397,7]
[334430771,1723091440148,-500.0,0.00027397,7]
[334430772,1723091440159,-500.0,0.00027397,7]
[334430773,1723091440168,-500.0,0.00027397,7]
[334430774,1723091440178,-500.61871886,0.00027397,7]
[334430775,1723091440187,-500.0,0.00027397,7]
[334430776,1723091440196,-613.26,0.00027397,7]
[334430777,1723091440205,-500.0,0.00027397,7]
[334430778,1723091440215,-502.40507291,0.00027397,7]
[334430779,1723091440224,-500.0,0.00027397,7]
[334430780,1723091440233,-788.19,0.00027397,7]
[334430781,1723091440244,-500.0,0.00027397,7]
[334430782,1723091440254,-500.0,0.00027397,7]
[334430783,1723091440263,-501.74726198,0.00027397,7]
[334430784,1723091440272,-501.07263207,0.00027397,7]
[334430785,1723091440281,-577.79,0.00027397,7]
[334430786,1723091440290,-500.0,0.00027397,7]
[334430787,1723091440299,-504.57026045,0.00027397,7]
[334430788,1723091440310,-500.0,0.00027397,7]
[334430789,1723091440319,-500.0,0.00027397,7]
[334430790,1723091440329,-500.0,0.00027397,7]
[334430792,1723091440339,-500.0,0.00027397,7]
[334430794,1723091440348,-500.0,0.00027397,7]
[334430797,1723091440359,-500.0,0.00027397,7]
[334430799,1723091440368,-500.0,0.00027397,7]
[334430801,1723091440379,-500.0,0.00027397,7]
[334430802,1723091440388,-500.0,0.00027397,7]
[334430804,1723091440402,-500.0,0.00027397,7]
[334430806,1723091440411,-1482.8,0.00027397,7]
[334430808,1723091440421,-503.20865657,0.00027397,7]
[334430810,1723091440431,-500.0,0.00027397,7]
[334430811,1723091440440,-600.40659605,0.00027397,7]
[334430813,1723091440450,-500.0,0.00027397,7]
[334430815,1723091440459,-500.0,0.00027397,7]
[334430817,1723091440470,-500.0,0.00027397,7]
[334430818,1723091440479,-500.0,0.00027397,7]
[334430820,1723091440489,-504.21530779,0.00027397,7]
[334430822,1723091440499,-500.0,0.00027397,7]
[334430823,1723091440511,-500.0,0.00027397,7]
[334430825,1723091440521,-503.62232853,0.00027397,7]
[334430827,1723091440531,-503.94669333,0.00027397,7]
[334430828,1723091440541,-500.0,0.00027397,7]
[334430830,1723091440550,-514.69334093,0.00027397,7]
[334430832,1723091440559,-500.80689215,0.00027397,7]
[334430833,1723091440569,-598.38,0.00027397,7]
[334430835,1723091440578,-504.80201644,0.00027397,2]
[334430837,1723091440589,-500.0,0.00027397,7]
[334430838,1723091440598,-169.0169841,0.00027397,7]
[334430839,1723091440607,-505.26955918,0.00027397,7]
[334430840,1723091440617,-1015.21,0.00027397,7]
[334430841,1723091440627,-500.0,0.00027397,7]
[334430842,1723091440637,-1086.07,0.00027397,7]
[334430843,1723091440647,-1170.61,0.00027397,7]
[334430844,1723091440656,-500.0,0.00027397,7]
[334430845,1723091440666,-500.0,0.00027397,7]
[334430846,1723091440675,-502.55844135,0.00027397,7]
[334430847,1723091440684,-500.0,0.00027397,7]
[334430848,1723091440694,-500.0,0.00027397,7]
[334430849,1723091440703,-500.0,0.00027397,7]
[334430850,1723091440713,-500.0,0.00027397,7]
[334430851,1723091440723,-500.0,0.00027397,7]
[334430852,1723091440734,-500.0,0.00027397,7]
[334430853,1723091440745,-500.0,0.00027397,7]
[334430854,1723091440755,-500.0,0.00027397,7]
[334430855,1723091440764,-500.0,0.00027397,7]
[334430856,1723091440774,-500.0,0.00027397,7]
[334430857,1723091440785,-500.0,0.00027397,7]
[334430859,1723091440794,-500.0,0.00027397,7]
[334430861,1723091440805,-1066.55,0.00027397,7]
[334430863,1723091440815,-500.0,0.00027397,7]
[334430865,1723091440826,-500.0,0.00027397,7]
[334430867,1723091440836,-504.03160949,0.00027397,7]
[334430869,1723091440846,-500.0,0.00027397,14]
[334430870,1723091440856,-500.0,0.00027397,14]
[334430871,1723091440866,-500.0,0.00027397,14]
[334430872,1723091440876,-500.0,0.00027397,14]
[334430873,1723091440885,-500.0,0.00027397,7]
[334430874,1723091440895,-500.0,0.00027397,7]
[334430875,1723091440905,-500.0,0.00027397,7]
[334430876,1723091440915,-378.1654324,0.00027397,7]
[334430877,1723091440924,-520.31186877,0.00027397,7]
[334430878,1723091440934,-502.09698884,0.00027397,7]
[334430879,1723091440943,-500.0,0.00027397,7]
[334430880,1723091440953,-500.55716379,0.00027397,7]
[334430881,1723091440963,-500.0,0.00027397,7]
[334430882,1723091440973,-549.54,0.00027397,7]
[334430883,1723091440982,-501.31947171,0.00027397,7]
[334430884,1723091440993,-500.0,0.00027397,7]
[334430885,1723091441002,-501.67385244,0.00027397,7]
[334430886,1723091441011,-500.0,0.00027397,7]
[334430887,1723091441021,-500.0,0.00027397,7]
[334430888,1723091441031,-500.0,0.00027397,7]
[334430889,1723091441040,-500.0,0.00027397,7]
[334430890,1723091441050,-500.0,0.00027397,7]
[334430891,1723091441059,-500.0,0.00027397,7]
[334430892,1723091441069,-500.0,0.00027397,7]
[334430893,1723091441079,-500.0,0.00027397,7]
[334430894,1723091441088,-501.10103205,0.00027397,7]
[334430895,1723091441098,-500.0,0.00027397,7]
[334430896,1723091441107,-501.87385666,0.00027397,7]
[334430897,1723091441117,-1863.68,0.00027397,7]
[334430898,1723091441126,-854.89,0.00027397,7]
[334430899,1723091441136,-500.0,0.00027397,7]
[334430900,1723091441145,-500.0,0.00027397,7]
[334430901,1723091441155,-500.0,0.00027397,7]
[334430902,1723091441165,-502.41266225,0.00027397,7]
[334430903,1723091441175,-1105.38,0.00027397,7]
[334430904,1723091441185,-500.0,0.00027397,7]
[334430905,1723091441195,-504.65048928,0.00027397,7]
[334430906,1723091441205,-273.61356917,0.00027397,7]
[334430907,1723091441215,-500.0,0.00027397,7]
[334430908,1723091441225,-644.23271019,0.00027397,7]
[334430909,1723091441234,-808.44,0.00027397,7]
[334430910,1723091441246,-502.27016223,0.00027397,7]
[334430911,1723091441256,-500.0,0.00027397,7]
[334430912,1723091441266,-461.16518818,0.00027397,7]
[334430913,1723091441275,-154.83369012,0.00027397,7]
[334430914,1723091441285,-502.50367758,0.00027397,7]
[334430915,1723091441295,-500.0,0.00027397,7]
[334430916,1723091441305,-500.89475948,0.00027397,7]
[334430917,1723091441314,-500.0,0.00027397,7]
[334430918,1723091441324,-1785.5,0.00027397,7]
[334430919,1723091441334,-501.54936867,0.00027397,7]
[334430920,1723091441344,-504.48158229,0.00027397,7]
[334430921,1723091441354,-500.0,0.00027397,7]
[334430922,1723091441364,-504.21135558,0.00027397,7]
[334430923,1723091441373,-560.8604586,0.00027397,7]
[334430924,1723091441382,-500.0,0.00027397,7]
[334430925,1723091441394,-504.41447953,0.00027397,7]
[334430926,1723091441405,-617.07,0.00027397,7]
[334430927,1723091441415,-154.436173,0.00027397,2]
[334430928,1723091441425,-558.81292204,0.00027397,7]
[334430929,1723091441436,-500.99867296,0.00027397,7]
[334430930,1723091441446,-500.0,0.00027397,7]
[334430931,1723091441456,-1574.48,0.00027397,7]
[334430932,1723091441468,-500.0,0.00027397,7]
[334430933,1723091441478,-711.27,0.00027397,7]
[334430934,1723091441487,-501.61089599,0.00027397,7]
[334430935,1723091441499,-501.5907601,0.00027397,7]
[334430936,1723091441509,-644.72,0.00027397,7]
[334430937,1723091441519,-740.23,0.00027397,7]
[334430938,1723091441529,-500.0,0.00027397,2]
[334430939,1723091441538,-500.0,0.00027397,7]
[334430940,1723091441548,-507.93851247,0.00027397,7]
[334430941,1723091441557,-500.0,0.00027397,7]
[334430942,1723091441567,-500.0,0.00027397,7]
[334430943,1723091441576,-1669.68,0.00027397,7]
[334430944,1723091441585,-500.0,0.00027397,7]
[334430945,1723091441595,-707.7,0.00027397,7]
[334430946,1723091441604,-500.0,0.00027397,7]
[334430947,1723091441614,-500.0,0.00027397,7]
[334430948,1723091441623,-504.14216366,0.00027397,7]
[334430949,1723091441631,-503.04638088,0.00027397,7]
[334430950,1723091441638,-898.68,0.00027397,7]
[334430951,1723091441644,-500.0,0.00027397,7]
[334430952,1723091441652,-500.0,0.00027397,7]
[334430953,1723091441659,-502.2928116,0.00027397,7]
[334430954,1723091441667,-500.0,0.00027397,7]
[334430955,1723091441674,-690.28,0.00027397,7]
[334430956,1723091441682,-710.38,0.00027397,7]
[334430957,1723091441692,-505.11,0.00027397,7]
[334430958,1723091441700,-500.0,0.00027397,7]
[334430959,1723091441708,-500.0,0.00027397,7]
[334430960,1723091441715,-908.56,0.00027397,7]
[334430961,1723091441722,-500.0,0.00027397,7]
[334430962,1723091441731,-505.43659713,0.00027397,7]
[334430963,1723091441739,-500.0,0.00027397,7]
[334430964,1723091441748,-642.47,0.00027397,7]
[334430965,1723091441757,-811.15,0.00027397,7]
[334430966,1723091441767,-542.08230402,0.00027397,7]
[334430967,1723091441774,-500.0,0.00027397,7]
[334430968,1723091441783,-500.0,0.00027397,7]
[334430969,1723091441792,-500.0,0.00027397,7]
[334430970,1723091441801,-500.0,0.00027397,7]
[334430971,1723091441809,-502.76039923,0.00027397,7]
[334430972,1723091441817,-1580.04,0.00027397,7]
[334430973,1723091441825,-500.0,0.00027397,7]